bitfinex/quotes_SOLUSD_20241107
["timestamp","ask_amount","ask_price","bid_price","bid_amount"]
[1730997876544,0.5870755,193.89,193.77,20.0]
[1730997876747,0.5870755,193.89,193.86,10.22928099]
[1730997876951,0.5870755,193.89,193.77,20.1]
[1730997876952,0.5870755,193.89,193.84,10.22928099]
[1730997877150,10.22928099,193.88,193.77,20.0]
[1730997877452,10.22928099,193.87,193.81,10.22928099]
[1730997877654,10.22928099,193.88,193.82,10.22928099]
[1730997877829,23.902374,193.85,193.76,15.1846]
[1730997878036,10.22928099,193.84,193.76,15.1846]
[1730997878232,23.776884,193.83,193.79,10.22928099]
[1730997878431,20.0,193.88,193.82,10.22928099]
[1730997878635,20.0,193.88,193.83,10.22928099]
[1730997879136,16.3747755,193.89,193.82,10.22928099]
[1730997879362,16.3747755,193.89,193.83,10.22928099]
[1730997879652,26.60405649,193.89,193.83,10.22928099]
[1730997880159,0.5870755,193.89,193.83,10.22928099]
[1730997880337,10.81635649,193.89,193.83,10.22928099]
[1730997880838,10.22928099,193.88,193.82,10.22928099]
[1730997881239,10.22928099,193.87,193.77,20.0]
[1730997881448,10.22928099,193.87,193.81,10.22928099]
[1730997882347,23.776884,193.88,193.81,10.22928099]
[1730997882550,10.22928099,193.87,193.81,10.22928099]
[1730997882756,23.776884,193.88,193.81,10.22928099]
[1730997882937,10.22928099,193.87,193.81,10.22928099]
[1730997883359,10.22928099,193.87,193.76,15.1846]
[1730997883360,10.22928099,193.87,193.77,20.0]
[1730997883558,10.22928099,193.87,193.81,10.22928099]
[1730997884444,34.00616499,193.86,193.76,15.1846]
[1730997884766,0.5870755,193.89,193.83,10.22928099]
[1730997884940,23.776884,193.88,193.83,10.22928099]
[1730997885255,34.00616499,193.88,193.81,10.22928099]
[1730997885960,10.22928099,193.86,193.8,10.22928099]
[1730997886457,0.5870755,193.89,193.76,15.1846]
[1730997886458,34.00616499,193.85,193.76,15.1846]
[1730997886955,34.00616499,193.85,193.79,10.22928099]
[1730997887142,23.776884,193.85,193.79,10.22928099]
[1730997887344,34.00616499,193.85,193.79,10.22928099]
[1730997888055,23.776884,193.85,193.8,10.22928099]
[1730997889157,23.776884,193.88,193.83,10.22928099]
[1730997889362,23.776884,193.88,193.82,10.22928099]
[1730997889846,23.776884,193.88,193.76,15.1846]
[1730997889847,23.776884,193.88,193.83,10.22928099]
[1730997890242,23.776884,193.88,193.82,10.22928099]
[1730997890641,34.00616499,193.88,193.81,10.22928099]
[1730997890853,23.776884,193.88,193.81,10.22928099]
[1730997891041,23.776884,193.88,193.82,10.22928099]
[1730997891465,0.5870755,193.89,193.83,10.22928099]
[1730997891651,10.81635649,193.89,193.83,10.22928099]
[1730997892256,10.81635649,193.89,193.82,10.22928099]
[1730997892535,0.5870755,193.89,193.83,10.22928099]
[1730997892749,0.5870755,193.89,193.84,10.22928099]
[1730997893439,0.5870755,193.89,193.83,15.4883]
[1730997893651,0.5870755,193.89,193.86,10.22928099]
[1730997893842,0.5870755,193.89,193.83,15.4883]
[1730997893843,0.5870755,193.89,193.85,10.22928099]
[1730997894261,0.5870755,193.89,193.83,15.4883]
[1730997894464,0.5870755,193.89,193.86,10.22928099]
[1730997895067,0.5870755,193.89,193.85,10.22928099]
[1730997895364,0.5870755,193.89,193.86,10.22928099]
[1730997895562,0.5870755,193.89,193.85,10.22928099]
[1730997895858,0.5870755,193.89,193.86,10.22928099]
[1730997896242,0.5870755,193.89,193.88,10.22928099]
[1730997896448,0.5870755,193.89,193.87,10.22928099]
[1730997896950,0.5870755,193.89,193.83,15.4883]
[1730997896951,0.5870755,193.89,193.86,10.22928099]
[1730997897153,0.5870755,193.89,193.87,10.22928099]
[1730997897867,0.5870755,193.89,193.83,15.4883]
[1730997898356,0.5870755,193.89,193.87,10.22928099]
[1730997898663,0.5870755,193.89,193.88,10.22928099]
[1730997899746,0.5870755,193.89,193.83,15.4883]
[1730997899946,0.5870755,193.89,193.87,10.22928099]
[1730997900147,0.5870755,193.89,193.88,10.22928099]
[1730997900764,0.5870755,193.89,193.83,15.4883]
[1730997900952,0.5870755,193.89,193.88,10.22928099]
[1730997901270,0.5870755,193.89,193.83,15.4883]
[1730997901447,0.5870755,193.89,193.88,10.22928099]
[1730997902352,0.5870755,193.89,193.87,10.22928099]
[1730997902553,0.5870755,193.89,193.88,10.22928099]
[1730997905248,0.5870755,193.89,193.83,15.4883]
[1730997905574,0.5870755,193.89,193.88,10.22928099]
[1730997906558,0.5870755,193.89,193.83,15.4883]
[1730997906757,0.5870755,193.89,193.88,10.22928099]
[1730997909278,56.15916096,194.0,193.91,0.1]
[1730997909279,54.88,194.0,193.91,0.1]
[1730997909484,22.6898,194.12,194.0,20.0]
[1730997909658,22.6898,194.12,194.07,10.22928099]
[1730997909659,6.3999,194.12,194.07,10.22928099]
[1730997910472,27.56841366,194.15,193.99,15.8208]
[1730997910473,10.22928099,194.14,193.99,15.8208]
[1730997910665,10.22928099,194.12,194.06,10.22928099]
[1730997910865,10.22928099,194.09,194.03,10.22928099]
[1730997911253,16.3368,194.06,193.89,15.4707]
[1730997911474,16.42911366,194.15,193.98,10.22928099]
[1730997911475,22.76,194.12,193.98,10.22928099]
[1730997911673,22.76,194.12,193.93,6.5191]
[1730997911674,10.22928099,194.06,193.99,10.22928099]
[1730997911858,10.22928099,194.07,194.0,10.22928099]
[1730997912586,10.22928099,194.07,193.94,0.12549]
[1730997912587,10.22928099,194.06,193.99,10.22928099]
[1730997912872,22.76,194.12,194.0,10.22928099]
[1730997913077,10.81635649,194.08,194.01,10.22928099]
[1730997913266,10.22928099,194.07,194.0,10.22928099]
[1730997913466,10.81635649,194.08,194.01,10.22928099]
[1730997914166,0.5870755,194.08,194.01,10.22928099]
[1730997914661,0.5870755,194.08,193.93,6.4191]
[1730997914971,10.22928099,194.04,193.97,10.22928099]
[1730997915161,10.22928099,194.05,193.98,10.22928099]
[1730997915583,10.22928099,194.04,193.97,10.22928099]
[1730997916078,23.776884,194.02,193.95,10.22928099]
[1730997916291,23.776884,194.02,193.91,15.3513]
[1730997916292,34.00616499,194.02,193.91,15.3513]
[1730997916513,10.22928099,194.0,193.93,10.22928099]
[1730997916777,10.22928099,194.01,193.94,10.22928099]
[1730997916983,10.22928099,194.02,193.94,10.22928099]
[1730997917172,10.22928099,194.02,193.95,10.22928099]
[1730997917374,15.93515746,194.02,193.95,15.93515746]
[1730997917766,15.93515746,194.02,193.91,15.3513]
[1730997917767,0.12549,194.07,193.93,15.93515746]
[1730997917967,15.93515746,194.01,193.94,15.93515746]
[1730997918284,15.93515746,194.0,193.93,15.93515746]
[1730997918464,15.93515746,193.99,193.92,15.93515746]
[1730997918978,15.93515746,194.0,193.93,15.93515746]
[1730997919482,15.93515746,194.01,193.94,15.93515746]
[1730997919665,15.93515746,194.02,193.95,15.93515746]
[1730997920066,15.93515746,194.02,193.94,15.93515746]
[1730997920485,15.93515746,194.02,193.95,15.93515746]
[1730997921185,15.93515746,194.02,193.91,15.3513]
[1730997921186,15.93515746,194.01,193.94,15.93515746]
[1730997921578,15.93515746,194.03,193.96,15.93515746]
[1730997921979,15.93515746,194.04,193.97,15.93515746]
[1730997922488,15.93515746,194.03,193.96,15.93515746]
[1730997924090,15.93515746,194.0,193.91,15.3513]
[1730997924271,15.93515746,194.01,193.94,15.93515746]
[1730997924470,15.93515746,194.01,193.95,15.93515746]
[1730997924691,15.93515746,194.03,193.96,15.93515746]
[1730997924989,15.93515746,194.02,193.95,15.93515746]
[1730997925203,15.93515746,194.03,193.96,15.93515746]
[1730997925691,15.93515746,194.02,193.95,15.93515746]
[1730997925867,15.93515746,194.01,193.94,15.93515746]
[1730997926278,15.93515746,194.02,193.95,15.93515746]
[1730997927185,15.93515746,194.0,193.93,15.93515746]
[1730997928291,15.93515746,194.0,193.94,15.93515746]
[1730997928793,15.93515746,194.01,193.94,15.93515746]
[1730997929582,15.93515746,194.0,193.94,15.93515746]
[1730997930491,2.00151527,194.08,193.99,15.93515746]
[1730997930492,0.5870755,194.08,193.99,15.93515746]
[1730997930691,0.5870755,194.08,194.04,15.93515746]
[1730997930991,15.93515746,194.06,193.99,15.93515746]
[1730997931588,15.93515746,194.06,193.96,15.2197]
[1730997931589,15.93515746,194.07,194.0,15.93515746]
[1730997932106,15.93515746,194.06,193.96,15.2197]
[1730997932272,15.93515746,194.06,193.98,15.93515746]
[1730997932981,15.93515746,194.05,193.98,15.93515746]
[1730997933605,15.93515746,194.06,193.99,15.93515746]
[1730997933778,15.93515746,194.06,193.96,15.2197]
[1730997933779,15.93515746,194.07,194.01,15.93515746]
[1730997933979,15.93515746,194.07,194.0,15.93515746]
[1730997934589,15.93515746,194.04,193.97,15.93515746]
[1730997934795,15.93515746,194.05,193.98,15.93515746]
[1730997934987,15.93515746,194.07,194.0,15.93515746]
[1730997935192,0.5870755,194.08,193.96,15.2197]
[1730997935193,15.93515746,194.06,193.99,15.93515746]
[1730997935394,15.93515746,194.06,193.98,15.93515746]
[1730997935588,15.93515746,194.05,193.98,15.93515746]
[1730997935794,15.93515746,194.04,193.97,15.93515746]
[1730997936002,15.93515746,194.03,193.96,31.15485746]
[1730997936197,6.7486755,194.08,193.96,15.2197]
[1730997936198,15.93515746,194.02,193.96,15.2197]
[1730997936406,15.93515746,194.02,193.95,15.93515746]
[1730997937187,15.93515746,194.03,193.96,15.93515746]
[1730997937388,10.19657995,194.02,193.95,10.19657995]
[1730997937902,10.19657995,194.01,193.95,10.19657995]
[1730997938199,10.19657995,194.01,193.91,15.093]
[1730997938505,10.19657995,194.0,193.93,10.19657995]
[1730997938907,10.19657995,193.99,193.93,10.19657995]
[1730997939087,10.19657995,193.96,193.91,15.093]
[1730997939285,10.19657995,193.97,193.9,10.19657995]
[1730997939608,10.19657995,193.97,193.86,15.7711]
[1730997939806,10.19657995,193.98,193.91,10.19657995]
[1730997939991,10.19657995,193.97,193.9,10.19657995]
[1730997940507,10.19657995,193.99,193.92,10.19657995]
[1730997940707,0.1,194.05,193.86,15.8711]
[1730997940708,10.19657995,194.0,193.93,10.19657995]
[1730997941389,0.12549,194.05,193.86,15.8711]
[1730997941390,10.19657995,193.99,193.92,10.19657995]
[1730997942291,10.19657995,193.98,193.92,10.19657995]
[1730997942491,10.19657995,193.99,193.92,10.19657995]
[1730997942801,0.12549,194.03,193.91,10.19657995]
[1730997943008,10.19657995,193.99,193.92,10.19657995]
[1730997943387,10.19657995,193.98,193.86,15.7711]
[1730997943604,10.19657995,193.98,193.92,10.19657995]
[1730997943814,10.19657995,193.98,193.91,10.19657995]
[1730997945084,0.5870755,194.08,193.97,10.29657995]
[1730997945287,10.78365545,194.08,194.02,10.19657995]
[1730997945707,10.78365545,194.08,193.96,0.1]
[1730997945708,10.78365545,194.08,194.01,10.19657995]
[1730997945906,10.78365545,194.08,193.94,0.1]
[1730997945907,10.19657995,194.07,193.94,0.1]
[1730997946111,10.19657995,194.07,194.0,10.19657995]
[1730997947009,0.5870755,194.08,194.01,10.19657995]
[1730997947310,0.5870755,194.08,193.95,0.2]
[1730997947311,10.78365545,194.08,194.0,15.7667]
[1730997947485,10.78365545,194.08,194.0,25.96327995]
[1730997947684,10.78365545,194.08,194.0,15.7667]
[1730997947685,0.5870755,194.08,194.0,15.7667]
[1730997947906,10.19657995,194.07,194.0,25.96327995]
[1730997948108,10.78365545,194.08,194.0,25.96327995]
[1730997948310,10.19657995,194.07,194.0,25.96327995]
[1730997948813,10.78365545,194.08,194.0,25.96327995]
[1730997949403,10.78365545,194.08,194.01,10.19657995]
[1730997949692,10.19657995,194.06,194.0,15.7667]
[1730997949892,10.19657995,194.05,194.0,15.7667]
[1730997950307,0.5870755,194.08,194.0,21.9545]
[1730997950494,0.5870755,194.08,194.0,21.8545]
[1730997950693,10.19657995,194.03,194.0,15.7667]
[1730997950897,10.19657995,194.06,194.0,15.7667]
[1730997951099,0.5870755,194.08,193.95,10.19658]
[1730997951100,10.19657995,194.02,193.95,10.19658]
[1730997951422,6.0454,194.05,193.93,10.19657995]
[1730997951717,10.19657995,194.01,193.94,10.19657995]
[1730997952090,10.19657995,194.0,193.91,15.5078]
[1730997952299,10.19657995,194.01,193.94,10.19657995]
[1730997952506,10.19657995,194.01,193.91,15.5078]
[1730997952691,43.776884,194.04,193.93,10.19657995]
[1730997952893,10.19657995,194.0,193.93,10.19657995]
[1730997953114,10.19657995,194.01,193.93,10.19657995]
[1730997953298,10.19657995,194.0,193.91,15.5078]
[1730997953496,10.19657995,194.0,193.92,10.19657995]
[1730997953714,10.19657995,194.0,193.93,10.19657995]
[1730997953910,10.19657995,194.0,193.91,15.5078]
[1730997953911,10.19657995,194.0,193.92,10.19657995]
[1730997954323,43.776884,194.04,193.93,10.19657995]
[1730997954526,10.19657995,194.01,193.93,10.19657995]
[1730997955531,15.93569379,194.01,193.93,15.93569379]
[1730997955704,15.93569379,194.02,193.95,15.93569379]
[1730997956124,15.93569379,194.03,193.95,15.93569379]
[1730997956423,59.71257779,194.04,193.97,15.93569379]
[1730997957515,6.0454,194.05,193.99,15.93569379]
[1730997958012,21.98109379,194.05,193.98,15.93569379]
[1730997958212,21.98109379,194.05,193.97,15.93569379]
[1730997958518,21.98109379,194.05,193.98,15.93569379]
[1730997959310,6.0454,194.05,193.99,15.93569379]
[1730997960124,6.0454,194.05,193.98,15.93569379]
[1730997960329,15.93569379,194.04,193.96,15.93569379]
[1730997960625,15.93569379,194.04,193.91,15.5078]
[1730997960626,15.93569379,194.02,193.95,15.93569379]
[1730997960925,15.93569379,194.03,193.96,15.93569379]
[1730997961139,39.71257779,194.04,193.97,15.93569379]
[1730997961306,6.0454,194.05,193.99,15.93569379]
[1730997962053,21.98109379,194.05,193.98,15.93569379]
[1730997962210,15.4814,194.06,194.01,15.93569379]
[1730997962412,15.93569379,194.06,193.99,15.93569379]
[1730997962613,15.93569379,194.05,193.99,15.93569379]
[1730997962824,15.93569379,194.06,193.99,15.93569379]
[1730997963242,15.93569379,194.03,193.96,15.93569379]
[1730997963533,15.93569379,194.01,193.95,15.93569379]
[1730997963917,0.12549,194.06,193.95,15.93569379]
[1730997963918,15.93569379,194.02,193.95,15.93569379]
[1730997964119,15.93569379,194.03,193.96,15.93569379]
[1730997964318,23.776884,194.07,193.97,15.93569379]
[1730997964510,15.93569379,194.04,193.97,15.93569379]
[1730997965730,23.776884,194.05,193.99,15.93569379]
[1730997965915,39.71257779,194.05,193.98,15.93569379]
[1730997966116,15.93569379,194.04,193.91,15.5078]
[1730997966316,15.93569379,194.04,193.97,15.93569379]
[1730997966838,15.93569379,194.05,193.98,15.93569379]
[1730997967536,15.93569379,194.06,193.99,15.93569379]
[1730997967837,15.93569379,194.04,193.97,15.93569379]
[1730997968209,15.93569379,194.05,193.98,15.93569379]
[1730997969337,15.93569379,194.04,193.97,15.93569379]
[1730997969537,39.71257779,194.03,193.96,15.93569379]
[1730997970421,16.06118379,194.02,193.95,15.93569379]
[1730997970625,23.776884,194.01,193.95,15.93569379]
[1730997971021,23.776884,193.99,193.93,15.93569379]
[1730997971212,39.71257779,193.94,193.84,6.3368]
[1730997971412,15.93569379,193.91,193.84,31.87138679]
[1730997971635,0.12549,193.96,193.82,16.086]
[1730997971636,15.93569379,193.93,193.86,15.93569379]
[1730997971941,23.776884,193.92,193.86,15.93569379]
[1730997972240,23.776884,193.92,193.76,1.39447918]
[1730997972241,15.93569379,193.89,193.83,15.93569379]
[1730997972534,15.93569379,193.89,193.78,15.5709]
[1730997972535,15.93569379,193.89,193.82,15.93569379]
[1730997972738,15.93569379,193.89,193.83,15.93569379]
[1730997973738,23.776884,193.89,193.83,15.93569379]
[1730997973933,23.776884,193.89,193.84,15.93569379]
[1730997974641,23.776884,193.9,193.84,15.93569379]
[1730997974839,23.776884,193.9,193.85,15.93569379]
[1730997975837,6.2857,193.92,193.88,15.93569379]
[1730997976041,31.49189379,193.96,193.89,15.93569379]
[1730997976219,6.6062,193.97,193.91,15.93569379]
[1730997976426,22.54189379,193.97,193.91,15.93569379]
[1730997977525,6.6062,193.97,193.92,15.93569379]
[1730997978129,22.54189379,193.97,193.9,15.93569379]
[1730997978336,39.71257779,193.93,193.79,6.6288]
[1730997978523,15.93569379,193.92,193.86,15.93569379]
[1730997979129,39.71257779,193.93,193.86,15.93569379]
[1730997979334,16.06118379,193.89,193.73,22.514594]
[1730997979527,15.93569379,193.84,193.71,15.5251]
[1730997979726,23.776884,193.83,193.77,15.93569379]
[1730997981662,39.71257779,193.83,193.76,15.93569379]
[1730997981843,15.93569379,193.82,193.71,15.5251]
[1730997982146,23.776884,193.81,193.71,15.5251]
[1730997982350,39.71257779,193.81,193.75,15.93569379]
[1730997982534,23.776884,193.81,193.76,15.93569379]
[1730997982739,23.902374,193.82,193.76,15.93569379]
[1730997982941,39.83806779,193.82,193.75,15.93569379]
[1730997983255,39.83806779,193.82,193.71,15.5251]
[1730997983256,23.776884,193.78,193.67,6.5789]
[1730997983428,23.776884,193.78,193.73,15.93569379]
[1730997983635,15.93569379,193.8,193.74,15.93569379]
[1730997983848,15.93569379,193.82,193.75,15.93569379]
[1730997984035,23.776884,193.81,193.76,15.93569379]
[1730997984432,23.776884,193.81,193.67,6.5789]
[1730997984433,0.12549,193.81,193.67,6.5789]
[1730997984656,39.71257779,193.82,193.75,15.93569379]
[1730997985250,39.71257779,193.82,193.76,15.93569379]
[1730997985443,1.26203319,193.85,193.76,15.93569379]
[1730997985653,6.3398,193.87,193.8,15.93569379]
[1730997985849,16.06118379,193.86,193.8,15.93569379]
[1730997986053,21.2387,193.91,193.81,15.93569379]
[1730997986247,37.17439379,193.91,193.85,15.93569379]
[1730997986452,6.1162,193.91,193.85,15.93569379]
[1730997986852,6.1162,193.91,193.75,15.2608]
[1730997986853,0.12549,193.9,193.75,15.2608]
[1730997987152,15.93569379,193.88,193.82,15.93569379]
[1730997987354,15.93569379,193.9,193.83,15.93569379]
[1730997987538,23.776884,193.89,193.84,15.93569379]
[1730997988254,23.776884,193.89,193.83,15.93569379]
[1730997988468,23.776884,193.89,193.84,15.93569379]
[1730997988764,39.71257779,193.9,193.84,15.93569379]
[1730997988937,0.12549,193.89,193.84,15.93569379]
[1730997989136,23.776884,193.9,193.84,15.93569379]
[1730997989640,22.05189379,193.91,193.84,15.93569379]
[1730997990040,22.05189379,193.91,193.85,15.93569379]
[1730997990855,23.776884,193.9,193.84,15.93569379]
[1730997991847,39.71257779,193.9,193.84,15.93569379]
[1730997992367,15.93569379,193.88,193.82,15.93569379]
[1730997992659,39.71257779,193.87,193.8,15.93569379]
[1730997993156,23.776884,193.87,193.82,15.93569379]
[1730997993363,23.776884,193.88,193.82,15.93569379]
[1730997994059,23.776884,193.88,193.81,15.93569379]
[1730997994060,39.71257779,193.88,193.81,15.93569379]
[1730997995258,23.776884,193.86,193.81,15.93569379]
[1730997995649,39.83806779,193.87,193.81,15.93569379]
[1730997996257,23.902374,193.87,193.81,15.93569379]
[1730997996760,23.776884,193.88,193.82,15.93569379]
[1730997996938,23.776884,193.86,193.81,15.93569379]
[1730997997145,23.776884,193.84,193.78,15.93569379]
[1730997997740,0.12549,193.83,193.75,15.2608]
[1730997997941,23.776884,193.82,193.77,15.93569379]
[1730997998452,23.776884,193.82,193.76,15.93569379]
[1730997998840,23.776884,193.82,193.77,15.93569379]
[1730997999462,6.5238,193.85,193.79,15.93569379]
[1730997999762,6.6126,193.92,193.81,15.93569379]
[1730997999951,15.93569379,193.88,193.82,15.93569379]
[1730998000349,15.93569379,193.91,193.84,15.93569379]
[1730998000658,15.93569379,193.91,193.85,15.93569379]
[1730998000862,15.93569379,193.91,193.8,15.93569379]
[1730998000863,22.44829379,193.92,193.86,15.93569379]
[1730998001049,6.5126,193.92,193.87,15.93569379]
[1730998001249,22.44829379,193.92,193.86,15.93569379]
[1730998001844,15.93569379,193.93,193.86,15.93569379]
[1730998002039,15.93569379,193.94,193.87,15.93569379]
[1730998002245,15.93569379,193.96,193.9,15.93569379]
[1730998002449,22.16509379,193.97,193.91,15.93569379]
[1730998002663,15.93569379,193.96,193.89,15.93569379]
[1730998003062,6.2294,193.97,193.8,22.5167]
[1730998003063,15.93569379,193.94,193.8,22.5167]
[1730998003252,15.93569379,193.93,193.8,22.5167]
[1730998003559,16.06118379,193.94,193.88,15.93569379]
[1730998004064,16.06118379,193.94,193.8,38.45239379]
[1730998004065,39.83806779,193.95,193.89,15.93569379]
[1730998004571,6.2294,193.97,193.91,15.93569379]
[1730998004748,15.93569379,193.99,193.93,15.93569379]
[1730998004949,15.93569379,193.99,193.84,0.1]
[1730998004950,6.1487,194.07,193.96,15.93569379]
[1730998005250,6.1487,194.07,193.97,15.93569379]
[1730998005251,7.36729438,194.07,193.97,15.93569379]
[1730998005464,15.93569379,194.02,193.91,22.8727]
[1730998005664,15.93569379,194.02,193.95,15.93569379]
[1730998005861,15.93569379,194.03,193.96,15.93569379]
[1730998006171,15.93569379,194.03,193.97,15.93569379]
[1730998006465,7.36729438,194.07,193.98,15.93569379]
[1730998006466,6.0487,194.07,193.98,15.93569379]
[1730998006768,15.93569379,194.04,193.97,15.93569379]
[1730998006964,15.93569379,193.99,193.91,22.8727]
[1730998007141,0.1,194.05,193.93,15.93569379]
[1730998007345,12.09581902,194.07,193.97,15.93569379]
[1730998007346,11.99581902,194.07,193.97,15.93569379]
[1730998007547,15.93569379,194.04,193.97,15.93569379]
[1730998007752,15.93569379,194.02,193.95,15.93569379]
[1730998008770,23.776884,194.01,193.95,15.93569379]
[1730998008962,23.776884,194.01,193.91,16.4211]
[1730998008963,39.71257779,194.01,193.94,15.93569379]
[1730998009152,23.776884,194.02,193.96,15.93569379]
[1730998009365,15.93569379,194.05,193.98,15.93569379]
[1730998009871,0.5870755,194.08,193.99,15.93569379]
[1730998010063,0.5870755,194.08,193.97,6.2488]
[1730998010064,0.5870755,194.08,194.03,15.93569379]
[1730998010246,15.93569379,194.07,194.01,15.93569379]
[1730998010869,16.52276929,194.08,194.01,15.93569379]
[1730998011055,16.52276929,194.08,194.02,15.93569379]
[1730998011250,16.52276929,194.08,194.01,15.93569379]
[1730998011567,0.5870755,194.08,194.02,15.93569379]
[1730998011771,0.5870755,194.08,194.03,15.93569379]
[1730998011955,15.93569379,194.07,193.97,6.2488]
[1730998012157,15.93569379,194.06,194.0,15.93569379]
[1730998012851,23.776884,194.05,193.99,15.93569379]
[1730998013057,15.93569379,194.07,194.0,15.93569379]
[1730998013859,15.93569379,194.06,194.0,15.93569379]
[1730998014072,15.93569379,194.06,193.99,15.93569379]
[1730998014453,15.93569379,194.06,193.97,6.2488]
[1730998014454,15.93569379,194.05,193.98,15.93569379]
[1730998014675,15.93569379,194.04,193.98,15.93569379]
[1730998014976,15.93569379,194.05,193.98,15.93569379]
[1730998015268,23.776884,194.05,193.99,15.93569379]
[1730998015473,39.71257779,194.05,193.98,15.93569379]
[1730998016474,15.93569379,194.04,193.97,15.93569379]
[1730998016772,39.71257779,194.03,193.96,15.93569379]
[1730998017371,6.415,194.03,193.94,15.93569379]
[1730998017552,23.776884,194.01,193.96,15.93569379]
[1730998017752,23.776884,194.02,193.96,15.93569379]
[1730998019575,39.71257779,194.02,193.95,15.93569379]
[1730998019951,15.93569379,194.01,193.94,15.93569379]
[1730998020163,15.93569379,194.0,193.93,15.93569379]
[1730998020370,23.776884,194.02,193.95,15.93569379]
[1730998020371,39.71257779,194.02,193.95,15.93569379]
[1730998020852,15.93569379,194.0,193.88,15.935694]
[1730998021060,15.93569379,194.01,193.94,15.93569379]
[1730998021677,39.71257779,193.98,193.91,15.93569379]
[1730998021879,23.902374,193.93,193.83,16.0955]
[1730998022089,39.83806779,193.93,193.86,15.93569379]
[1730998022369,23.902374,193.93,193.87,15.93569379]
[1730998022572,39.83806779,193.93,193.86,15.93569379]
[1730998022968,23.902374,193.93,193.87,15.93569379]
[1730998023350,23.902374,193.93,193.83,16.0955]
[1730998023351,39.83806779,193.93,193.86,15.93569379]
[1730998023661,39.83806779,193.93,193.85,15.93569379]
[1730998023978,39.83806779,193.93,193.86,15.93569379]
[1730998024570,23.902374,193.93,193.87,15.93569379]
[1730998024768,39.83806779,193.94,193.87,15.93569379]
[1730998026565,23.902374,193.94,193.88,15.93569379]
[1730998026882,39.83806779,193.94,193.88,15.93569379]
[1730998027079,0.12549,193.92,193.85,15.93569379]
[1730998027291,15.93569379,193.94,193.87,15.93569379]
[1730998027575,15.93569379,193.95,193.88,15.93569379]
[1730998027781,7.89949793,193.99,193.9,15.93569379]
[1730998027964,15.93569379,193.96,193.9,15.93569379]
[1730998028578,22.53689379,193.99,193.92,15.93569379]
[1730998028758,15.93569379,194.0,193.93,15.93569379]
[1730998029971,15.93569379,193.99,193.92,15.93569379]
[1730998031357,0.5870755,194.08,193.95,15.93569379]
[1730998031558,15.93569379,194.05,193.99,15.93569379]
[1730998031958,15.93569379,194.05,193.98,15.93569379]
[1730998032472,15.93569379,194.04,193.98,15.93569379]
[1730998033184,0.5870755,194.08,193.95,15.93569379]
[1730998033185,15.93569379,194.01,193.95,15.93569379]
[1730998033565,15.93569379,194.02,193.95,15.93569379]
[1730998034180,15.93569379,194.03,193.97,15.93569379]
[1730998034484,15.93569379,194.04,193.97,15.93569379]
[1730998034677,15.93569379,194.05,193.98,15.93569379]
[1730998034876,15.93569379,194.05,193.99,15.93569379]
[1730998035384,15.93569379,194.07,194.01,15.93569379]
[1730998035592,0.5870755,194.08,194.02,15.93569379]
[1730998036089,16.52276929,194.08,194.01,15.93569379]
[1730998036263,15.93569379,194.07,194.01,15.93569379]
[1730998036468,0.5870755,194.08,194.0,15.93569379]
[1730998036469,15.93569379,194.06,194.0,15.93569379]
[1730998036664,15.93569379,194.06,193.99,15.93569379]
[1730998037083,15.93569379,194.05,193.98,15.93569379]
[1730998037289,0.5870755,194.08,193.98,15.93569379]
[1730998037290,15.93569379,194.04,193.98,15.93569379]
[1730998037990,15.93569379,194.04,193.93,16.0494]
[1730998037991,15.93569379,194.02,193.96,15.93569379]
[1730998038288,15.93569379,194.02,193.93,16.0494]
[1730998038289,15.93569379,194.02,193.95,15.93569379]
[1730998039377,15.93569379,193.97,193.9,15.93569379]
[1730998039581,15.93569379,193.98,193.91,15.93569379]
[1730998039967,15.93569379,193.96,193.9,15.93569379]
[1730998040166,15.93569379,193.96,193.89,15.93569379]
[1730998041174,15.93569379,193.99,193.93,15.93569379]
[1730998041570,15.93569379,193.99,193.92,15.93569379]
[1730998041893,15.93569379,193.96,193.9,15.93569379]
[1730998042068,39.71257779,193.98,193.91,15.93569379]
[1730998042690,15.93569379,193.97,193.91,15.93569379]
[1730998043081,15.93569379,193.95,193.88,16.1562]
[1730998043396,15.93569379,193.95,193.88,15.93569379]
[1730998043582,15.93569379,193.94,193.87,15.93569379]
[1730998043893,23.776884,193.93,193.87,15.93569379]
[1730998044282,23.776884,193.93,193.83,16.1562]
[1730998044475,23.776884,193.93,193.88,15.93569379]
[1730998044990,23.776884,193.93,193.83,16.1562]
[1730998044991,39.71257779,193.93,193.83,16.1562]
[1730998045195,15.93569379,193.92,193.85,15.93569379]
[1730998045491,15.93569379,193.9,193.84,15.93569379]
[1730998045690,0.12549,193.88,193.78,15.1897]
[1730998045992,15.93569379,193.87,193.78,15.1897]
[1730998046195,23.776884,193.87,193.82,15.93569379]
[1730998046570,23.776884,193.88,193.83,15.93569379]